bitfinex/quotes_BTCUSD_20240730
["timestamp","ask_amount","ask_price","bid_price","bid_amount"]
[1722343057455,0.00846,66660.0,66659.0,1.380323]
[1722343057660,0.13421406,66660.0,66659.0,1.96749943]
[1722343057861,0.13421406,66660.0,66659.0,2.11059943]
[1722343057989,0.00846,66670.0,66669.0,1.080131]
[1722343058201,0.00846,66670.0,66669.0,2.11039643]
[1722343058402,0.00846,66670.0,66669.0,2.44119557]
[1722343059651,0.00805,66680.0,66679.0,1.69676071]
[1722343059867,0.00805,66680.0,66679.0,1.94409443]
[1722343060071,0.00805,66680.0,66679.0,1.34448904]
[1722343060247,0.00805,66680.0,66679.0,1.36748904]
[1722343061552,0.00805,66680.0,66679.0,1.68433175]
[1722343061767,0.00805,66680.0,66679.0,1.80887234]
[1722343061973,0.00805,66680.0,66679.0,1.88807234]
[1722343062177,0.0315792,66680.0,66679.0,1.90207234]
[1722343062398,0.00805,66680.0,66679.0,1.87117363]
[1722343062598,0.00805,66680.0,66679.0,1.74663304]
[1722343062800,0.00805,66680.0,66679.0,1.76063304]
[1722343063261,0.00805,66680.0,66679.0,1.44668904]
[1722343063465,0.00805,66680.0,66679.0,1.46068904]
[1722343063667,0.00805,66680.0,66679.0,1.76063304]
[1722343063806,0.00805,66680.0,66679.0,1.74663304]
[1722343064835,0.00805,66680.0,66679.0,1.44668904]
[1722343065035,0.00805,66680.0,66679.0,1.46068904]
[1722343065413,0.00805,66680.0,66679.0,1.44668904]
[1722343065620,0.00805,66680.0,66679.0,1.76063304]
[1722343065825,0.00805,66680.0,66679.0,1.46068904]
[1722343066452,0.00805,66680.0,66679.0,1.47758775]
[1722343066668,0.0045118,66680.0,66679.0,1.77753175]
[1722343066820,0.0045118,66680.0,66679.0,1.96291009]
[1722343067024,0.00846,66688.0,66687.0,1.079848]
[1722343067223,0.00846,66688.0,66687.0,1.85954896]
[1722343067829,0.00846,66688.0,66687.0,1.98262907]
[1722343068063,0.00846,66688.0,66687.0,1.87644767]
[1722343068463,0.00846,66688.0,66687.0,1.89044767]
[1722343068662,0.00846,66688.0,66687.0,2.45863606]
[1722343069087,0.00846,66688.0,66687.0,1.05703296]
[1722343069088,0.03198566,66688.0,66687.0,1.05703296]
[1722343069416,0.03198566,66688.0,66687.0,0.75712496]
[1722343069619,0.00846,66688.0,66687.0,1.35694096]
[1722343069964,0.00846,66688.0,66687.0,1.55064096]
[1722343070566,0.00846,66688.0,66687.0,1.37994096]
[1722343070885,0.00846,66688.0,66687.0,1.08003296]
[1722343071408,0.00846,66688.0,66687.0,1.02686296]
[1722343071409,0.07096,66688.0,66687.0,1.02686296]
[1722343071611,0.07096,66688.0,66687.0,1.05693296]
[1722343071847,0.07096,66688.0,66687.0,0.72695496]
[1722343072210,0.07096,66688.0,66687.0,1.02686296]
[1722343072614,0.09448811,66688.0,66687.0,0.42704696]
[1722343072823,0.09448811,66688.0,66687.0,0.72695496]
[1722343073042,0.17308811,66688.0,66687.0,0.72695496]
[1722343073343,0.17308811,66688.0,66687.0,1.02686296]
[1722343073561,0.17308811,66688.0,66687.0,1.05693296]
[1722343073761,0.17308811,66688.0,66687.0,1.02686296]
[1722343074140,0.14956,66688.0,66687.0,1.02686296]
[1722343074691,0.14956,66688.0,66687.0,1.05693296]
[1722343075228,0.14956,66688.0,66687.0,1.02686296]
[1722343075427,0.14956,66688.0,66687.0,1.05693296]
[1722343077102,0.14956,66688.0,66687.0,1.32677096]
[1722343077103,0.07096,66688.0,66687.0,1.32677096]
[1722343078122,0.07096,66688.0,66687.0,1.35684096]
[1722343078314,0.07096,66688.0,66687.0,1.05693296]
[1722343078740,0.09448764,66688.0,66687.0,1.05693296]
[1722343079084,0.07096,66688.0,66687.0,1.05693296]
[1722343079311,0.06596,66688.0,66687.0,1.05693296]
[1722343079544,0.08106129,66688.0,66687.0,0.12645992]
[1722343079707,0.08106129,66688.0,66687.0,0.02645992]
[1722343079913,0.08106129,66688.0,66687.0,0.12645992]
[1722343081260,0.19299246,66688.0,66687.0,0.12645992]
[1722343081457,0.27509246,66688.0,66687.0,0.11245992]
[1722343081661,0.27509246,66688.0,66687.0,0.17641392]
[1722343081832,0.29662116,66688.0,66687.0,0.26241392]
[1722343082037,0.29662116,66688.0,66687.0,0.56232192]
[1722343082213,0.29662116,66688.0,66687.0,0.57632192]
[1722343082616,0.29351987,66688.0,66687.0,0.87622992]
[1722343082820,0.29662116,66688.0,66687.0,0.57632192]
[1722343083021,0.29662116,66688.0,66687.0,0.12645992]
[1722343083283,0.44857316,66688.0,66687.0,0.02645992]
[1722343083466,0.63516942,66688.0,66687.0,0.014]
[1722343083675,0.93507342,66688.0,66687.0,0.014]
[1722343083919,1.29895333,66688.0,66687.0,0.014]
[1722343084725,0.69914533,66688.0,66687.0,0.014]
[1722343084934,0.70069953,66688.0,66687.0,0.014]
[1722343085150,0.70069953,66688.0,66675.0,0.14998]
[1722343085151,1.00060353,66688.0,66675.0,0.149981]
[1722343085356,0.01,66676.0,66675.0,0.449943]
[1722343085524,0.12503246,66676.0,66675.0,0.149981]
[1722343085718,0.12503246,66676.0,66673.0,0.149984]
[1722343085719,0.01310129,66674.0,66673.0,0.149984]
[1722343085929,0.01310129,66674.0,66667.0,0.03007]
[1722343085930,0.01310129,66672.0,66667.0,0.03007]
[1722343086093,0.002,66670.0,66669.0,0.449981]
[1722343086301,0.002,66670.0,66669.0,0.549981]
[1722343086703,0.03663527,66670.0,66669.0,0.580053]
[1722343087231,0.15056644,66670.0,66669.0,0.1]
[1722343087430,0.002,66667.0,66666.0,0.180071]
[1722343087612,0.0035542,66667.0,66666.0,0.580074]
[1722343087955,0.11548537,66667.0,66666.0,0.580074]
[1722343088180,0.11703246,66667.0,66666.0,0.13007]
[1722343088370,0.11703246,66667.0,66666.0,0.1]
[1722343088371,0.01510129,66667.0,66666.0,0.1]
[1722343088578,0.08810129,66667.0,66666.0,0.250001]
[1722343088786,0.08810129,66667.0,66666.0,0.550004]
[1722343088917,0.08810129,66667.0,66666.0,0.850007]
[1722343088918,0.20003246,66667.0,66666.0,0.850007]
[1722343089127,0.20003246,66667.0,66666.0,0.550004]
[1722343089358,0.12503246,66667.0,66666.0,0.880077]
[1722343089580,0.01310129,66667.0,66666.0,0.980077]
[1722343089778,0.01310129,66667.0,66666.0,0.650004]
[1722343090001,0.12503246,66667.0,66666.0,0.650004]
[1722343090208,0.12503246,66667.0,66666.0,0.664004]
[1722343090417,0.12503246,66667.0,66666.0,0.680074]
[1722343090813,0.01310129,66667.0,66666.0,0.694074]
[1722343090988,0.01310129,66667.0,66666.0,0.950007]
[1722343091186,0.01,66667.0,66666.0,0.950007]
[1722343091429,0.12503246,66667.0,66666.0,0.694074]
[1722343091628,0.01310129,66667.0,66666.0,0.694074]
[1722343091965,0.15056758,66667.0,66666.0,0.214]
[1722343092137,0.12703246,66667.0,66666.0,0.214]
[1722343092498,0.12703246,66667.0,66666.0,0.1]
[1722343092704,0.01510129,66667.0,66666.0,0.1]
[1722343092900,0.01510129,66667.0,66666.0,0.114]
[1722343093158,0.01665549,66667.0,66666.0,0.114]
[1722343093377,0.01665549,66667.0,66666.0,0.1]
[1722343093506,0.01665549,66667.0,66666.0,0.114]
[1722343093507,0.12703246,66667.0,66666.0,0.114]
[1722343094006,0.12703246,66667.0,66666.0,0.1]
[1722343094229,0.12703246,66667.0,66666.0,0.114]
[1722343094429,0.27063246,66667.0,66666.0,0.114]
[1722343095461,0.29416903,66667.0,66666.0,0.114]
[1722343095865,0.27063246,66667.0,66666.0,0.114]
[1722343096453,0.26863246,66667.0,66666.0,0.114]
[1722343097100,0.18553117,66667.0,66666.0,0.564004]
[1722343097302,0.18553117,66667.0,66666.0,0.864007]
[1722343097837,0.18863246,66667.0,66666.0,0.864007]
[1722343098600,0.19063246,66667.0,66666.0,0.564004]
[1722343098790,0.18863246,66667.0,66666.0,0.564004]
[1722343099169,0.21216842,66667.0,66666.0,0.564004]
[1722343099524,0.18553117,66667.0,66666.0,0.864007]
[1722343099698,0.12193117,66667.0,66666.0,0.864007]
[1722343100052,0.12193117,66667.0,66666.0,0.87421443]
[1722343100596,0.01,66667.0,66666.0,0.87421443]
[1722343100799,0.12193117,66667.0,66666.0,0.87421443]
[1722343101403,0.01,66667.0,66666.0,0.87421443]
[1722343102215,0.03353557,66667.0,66666.0,0.87421443]
[1722343102789,0.14856803,66667.0,66666.0,0.87421443]
[1722343103715,0.12503246,66667.0,66666.0,0.87421443]
[1722343104115,0.11193117,66667.0,66666.0,1.17421743]
[1722343104317,0.01,66668.0,66667.0,0.749995]
[1722343104515,0.01,66668.0,66667.0,1.049993]
[1722343104722,0.01,66668.0,66667.0,1.0601933]
[1722343104930,0.0618,66671.0,66667.0,0.16083334]
[1722343105076,0.15695648,66670.0,66669.0,0.673753]
[1722343105290,0.00112102,66670.0,66669.0,1.53455359]
[1722343105490,0.01,66678.0,66677.0,0.479999]
[1722343105693,0.16581966,66678.0,66677.0,1.09008748]
[1722343105925,0.16581966,66678.0,66677.0,1.54067352]
[1722343105926,0.15737386,66678.0,66677.0,1.54067352]
[1722343106104,0.0015542,66678.0,66677.0,1.64067352]
[1722343106315,0.4715,66679.0,66678.0,1.049821]
[1722343106516,0.62730201,66679.0,66678.0,1.30045404]
[1722343106715,0.62730201,66679.0,66678.0,1.31062591]
[1722343107266,0.65083269,66679.0,66678.0,1.31062591]
[1722343107463,0.65083269,66679.0,66678.0,1.69007491]
[1722343107685,0.65083269,66679.0,66678.0,1.72707491]
[1722343107686,0.49503068,66679.0,66678.0,1.72707491]
[1722343108167,0.48460129,66679.0,66678.0,1.17399287]
[1722343108415,0.64040267,66679.0,66678.0,1.17399287]
[1722343108601,0.16890267,66679.0,66678.0,1.17399287]
[1722343109021,0.16890267,66679.0,66678.0,0.87404387]
[1722343109227,0.17090267,66679.0,66678.0,0.57409487]
[1722343109605,0.23720267,66679.0,66678.0,0.12417187]
[1722343109810,0.23720267,66679.0,66678.0,0.17414587]
[1722343109985,0.23720267,66679.0,66678.0,0.27414587]
[1722343110529,0.16580138,66679.0,66678.0,0.87404387]
[1722343110795,0.15580138,66679.0,66678.0,1.17399287]
[1722343111162,0.15581544,66683.0,66681.0,0.299935]
[1722343111364,0.01310129,66684.0,66683.0,0.449889]
[1722343111569,0.16891661,66684.0,66683.0,0.749815]
[1722343111772,0.16891661,66684.0,66683.0,0.75997812]
[1722343112112,0.19244612,66684.0,66683.0,0.75997812]
[1722343112719,0.19244612,66684.0,66683.0,1.05990412]
[1722343112720,0.17934483,66684.0,66683.0,1.05990412]
[1722343112974,0.16581532,66684.0,66683.0,1.15990412]
[1722343113554,0.16581532,66684.0,66683.0,1.17390412]
[1722343113961,0.15581532,66684.0,66683.0,1.17390412]
[1722343114178,0.15579653,66684.0,66683.0,0.12416312]
[1722343114401,0.15579636,66686.0,66685.0,0.599834]
[1722343114659,0.15579626,66687.0,66686.0,0.449869]
[1722343114868,0.15579626,66687.0,66686.0,0.98788825]
[1722343115102,0.15579626,66687.0,66686.0,1.53813986]
[1722343115357,0.00346,66688.0,66687.0,0.77984]
[1722343115584,0.00346,66688.0,66687.0,1.45421101]
[1722343115823,0.02698711,66688.0,66687.0,1.64042677]
[1722343116030,0.02698711,66688.0,66687.0,1.82400416]
[1722343116243,0.02698711,66688.0,66687.0,1.709907]
[1722343116447,0.02698711,66688.0,66687.0,2.01671371]
[1722343116642,0.02698711,66688.0,66687.0,2.16779512]
[1722343117505,0.02698711,66688.0,66687.0,2.18179512]
[1722343117880,0.02698711,66688.0,66687.0,2.26159512]
[1722343118081,0.02698711,66688.0,66687.0,2.42334561]
[1722343118286,0.02698711,66688.0,66687.0,2.54739051]
[1722343118515,0.00346,66688.0,66687.0,2.42334561]
[1722343119612,0.02698376,66688.0,66687.0,2.42334561]
[1722343119811,0.02698376,66688.0,66687.0,2.40934561]
[1722343120196,0.02698376,66688.0,66687.0,2.42334561]
[1722343120372,0.02698376,66688.0,66687.0,2.72325361]
[1722343120572,0.00346,66688.0,66687.0,2.72325361]
[1722343120777,0.0001,66700.0,66699.0,0.19689571]
[1722343121010,0.0001,66700.0,66699.0,1.11287361]
[1722343121237,0.0001,66700.0,66699.0,2.33930409]
[1722343121861,0.0001,66700.0,66699.0,2.63915809]
[1722343122150,0.00845,66703.0,66702.0,1.83859371]
[1722343122279,0.00845,66703.0,66702.0,1.93696827]
[1722343122485,0.00845,66703.0,66702.0,1.9577832]
[1722343122686,0.00845,66703.0,66702.0,1.8432887]
[1722343123088,0.00845,66703.0,66702.0,1.96785981]
[1722343123290,0.00845,66703.0,66702.0,1.86018741]
[1722343123501,0.00845,66703.0,66702.0,2.16002841]
[1722343123932,0.03196874,66703.0,66702.0,2.17402841]
[1722343124308,0.00845,66703.0,66702.0,2.17402841]
[1722343124711,0.00845,66703.0,66702.0,2.16002841]
[1722343126133,0.00845,66703.0,66702.0,2.1571297]
[1722343126331,0.00845,66703.0,66702.0,2.45986941]
[1722343126493,0.00845,66707.0,66704.0,1.689146]
[1722343126698,0.00845,66707.0,66704.0,2.00615798]
[1722343126944,0.00845,66707.0,66704.0,2.01624423]
[1722343127754,0.00845,66707.0,66704.0,2.03024423]
[1722343128828,0.04721366,66705.0,66704.0,2.03024423]
[1722343129234,0.023696,66705.0,66704.0,2.03024423]
[1722343130089,0.023696,66705.0,66704.0,2.01624423]
[1722343130296,0.023696,66705.0,66704.0,2.03024423]
[1722343130297,0.01357529,66705.0,66704.0,2.03024423]
[1722343131337,0.0370927,66705.0,66704.0,2.03024423]
[1722343131533,0.03325271,66705.0,66704.0,2.03024423]
[1722343132135,0.03408271,66705.0,66704.0,2.03024423]
[1722343132315,0.00845,66716.0,66715.0,0.241761]
[1722343132477,0.00845,66716.0,66715.0,1.42564346]
[1722343132681,0.44444115,66731.0,66719.0,0.479716]
[1722343132682,0.0015542,66730.0,66719.0,0.479716]
[1722343132912,0.0015542,66730.0,66719.0,1.35287704]
[1722343133245,0.0746,66733.0,66719.0,1.66265477]
[1722343133651,0.07534716,66735.0,66719.0,1.66265477]
[1722343133652,0.06945,66720.0,66719.0,1.66265477]
[1722343133841,0.06945,66720.0,66719.0,1.70036841]
[1722343134090,0.00845,66720.0,66719.0,1.70036841]
[1722343136015,0.00845,66720.0,66719.0,1.72436841]
[1722343136140,0.00845,66720.0,66719.0,1.70036841]
[1722343136339,0.00845,66720.0,66719.0,1.71436841]
[1722343136746,0.00845,66720.0,66719.0,1.70036841]
[1722343136948,0.00845,66720.0,66719.0,1.70862998]
[1722343137206,0.00845,66720.0,66719.0,1.72262998]
[1722343137515,0.00845,66720.0,66719.0,1.70862998]
[1722343137826,0.00845,66720.0,66719.0,1.72262998]
[1722343137972,0.00845,66720.0,66719.0,1.73952869]
[1722343138175,0.00845,66720.0,66719.0,2.18189269]
[1722343138779,0.00845,66720.0,66719.0,2.30640373]
[1722343138981,0.00845,66720.0,66719.0,1.98974102]
[1722343139208,0.01660129,66736.0,66735.0,1.348614]
[1722343139209,0.0015,66736.0,66735.0,1.348614]
[1722343139414,0.0015,66737.0,66736.0,0.246414]
[1722343139751,0.00845,66748.0,66747.0,1.078803]
[1722343139988,0.00845,66748.0,66747.0,1.32943604]
[1722343140191,0.00845,66748.0,66747.0,1.33939037]
[1722343140367,0.00845,66748.0,66747.0,1.03975237]
[1722343140566,0.00845,66748.0,66747.0,1.05944194]
[1722343140705,0.00845,66748.0,66747.0,1.35907994]
[1722343141110,0.00845,66748.0,66747.0,1.07344194]
[1722343141321,0.00845,66748.0,66747.0,1.05944194]
[1722343141322,0.03195672,66748.0,66747.0,1.05944194]
[1722343141520,0.03195672,66748.0,66747.0,0.6091709]
[1722343141521,0.11165801,66748.0,66747.0,0.6091709]
[1722343141804,0.19645801,66748.0,66747.0,0.27377333]
[1722343142118,0.19645801,66748.0,66747.0,0.12395433]
[1722343142119,0.35211744,66748.0,66747.0,0.12395433]
[1722343142552,0.32861072,66748.0,66747.0,0.12395433]
[1722343142730,0.32861072,66748.0,66747.0,0.02395433]
[1722343142937,0.32861072,66748.0,66747.0,0.014]
[1722343143139,0.00510129,66745.0,66744.0,0.1]
[1722343143339,0.0737,66745.0,66744.0,0.60688121]
[1722343143615,0.21935943,66745.0,66744.0,1.08723625]
[1722343143876,0.0637,66745.0,66744.0,1.08723625]
[1722343144068,0.0637,66745.0,66744.0,1.38688825]
[1722343144250,0.0637,66745.0,66744.0,1.38683439]
[1722343144834,0.0637,66745.0,66744.0,1.40083439]
[1722343145043,0.0637,66745.0,66744.0,1.10118239]
[1722343145215,0.0637,66745.0,66744.0,1.05367193]
[1722343145419,0.03665973,66745.0,66744.0,1.05367193]
[1722343145820,0.06016706,66745.0,66744.0,1.05367193]
[1722343146161,0.07016706,66745.0,66744.0,0.15390889]
[1722343146341,0.15396835,66745.0,66744.0,0.02389275]
[1722343146559,0.15396835,66745.0,66744.0,0.014]
[1722343146894,0.30963115,66745.0,66744.0,0.014]
[1722343147019,0.28612382,66745.0,66744.0,0.02389275]
[1722343147703,1.05064836,66745.0,66744.0,0.02389275]
[1722343147901,1.05064836,66745.0,66744.0,0.014]
[1722343147902,1.35029536,66745.0,66744.0,0.014]
[1722343148055,1.05064836,66745.0,66744.0,0.014]
[1722343148260,1.35029536,66745.0,66744.0,0.014]
[1722343148640,1.35029536,66745.0,66723.0,0.179941]
[1722343148641,0.149845,66736.0,66723.0,0.179941]
[1722343148843,0.01,66742.0,66723.0,0.03007]
[1722343148844,0.16050129,66724.0,66723.0,0.03007]
[1722343149106,0.16050129,66724.0,66706.0,0.00841984]
[1722343149107,0.01310129,66713.0,66706.0,0.00841984]
[1722343149260,0.01310129,66713.0,66712.0,0.179968]
[1722343149443,0.07730129,66713.0,66712.0,0.179968]
[1722343149647,0.07730129,66713.0,66712.0,1.079356]
[1722343149648,0.0742,66713.0,66712.0,1.079356]
[1722343150086,0.0742,66713.0,66712.0,0.77956]
[1722343150087,0.25344721,66713.0,66712.0,0.77956]
[1722343150293,0.00510129,66711.0,66710.0,0.479777]
[1722343150613,0.00510129,66711.0,66710.0,0.03007]
[1722343150614,0.01510129,66711.0,66710.0,0.03007]
[1722343150820,0.01510129,66711.0,66707.0,0.179979]
[1722343150821,0.01,66708.0,66707.0,0.179979]
[1722343151056,0.16572791,66708.0,66707.0,0.19879224]
[1722343151302,0.0912,66712.0,66711.0,0.7495]
[1722343151474,0.24694025,66712.0,66711.0,0.7495]
[1722343152358,0.24694025,66712.0,66711.0,0.8495]
[1722343152770,0.25004154,66712.0,66711.0,0.8495]
[1722343152968,0.25004154,66712.0,66711.0,0.5637]
[1722343153172,0.25104154,66712.0,66711.0,0.5637]
[1722343153374,0.27456035,66712.0,66711.0,0.5637]
[1722343155911,0.25304154,66712.0,66711.0,0.014]
[1722343156320,0.51394795,66712.0,66711.0,0.014]
[1722343157165,0.51394795,66712.0,66711.0,0.0239896]
[1722343157375,0.31794154,66712.0,66711.0,0.0099896]
[1722343157709,0.31894154,66712.0,66711.0,0.014]
[1722343157910,0.31894154,66712.0,66711.0,0.0239896]
[1722343158081,0.34246348,66712.0,66711.0,0.014]
[1722343158416,0.34246348,66712.0,66711.0,0.0239896]
[1722343159109,0.31894154,66712.0,66711.0,0.1639]
[1722343159283,0.31894154,66712.0,66711.0,0.4736896]
[1722343159485,0.31894154,66712.0,66711.0,0.1738896]
[1722343159638,0.31894154,66712.0,66711.0,0.4736896]
[1722343159639,0.31384025,66712.0,66711.0,0.4736896]
[1722343160257,0.16674025,66712.0,66711.0,0.7734896]
[1722343160455,0.16674025,66712.0,66711.0,1.02412264]
[1722343160456,0.001,66712.0,66711.0,1.02412264]
[1722343160664,0.001,66712.0,66711.0,1.04712264]
[1722343160992,0.01410129,66712.0,66711.0,0.5736896]
[1722343161199,0.001,66712.0,66711.0,0.5736896]
[1722343161384,0.001,66712.0,66711.0,1.1732896]
[1722343161385,0.011,66712.0,66711.0,1.1732896]
[1722343161782,0.001,66712.0,66711.0,1.32392264]
[1722343161986,0.001,66712.0,66711.0,1.74149264]
[1722343162181,0.001,66712.0,66711.0,1.44169264]
[1722343162443,0.02451896,66712.0,66711.0,1.37699264]
[1722343162862,0.02451896,66712.0,66711.0,1.35399264]
[1722343163067,0.02351896,66712.0,66711.0,1.33999264]
[1722343163405,0.02451896,66712.0,66711.0,1.35299264]
[1722343164653,0.02451896,66712.0,66711.0,1.35390564]
[1722343165772,0.02391039,66712.0,66711.0,1.35390564]
[1722343166802,0.02391039,66712.0,66711.0,1.68670564]
[1722343166980,0.02391039,66712.0,66711.0,1.67670564]
[1722343167473,0.02391039,66712.0,66711.0,1.96147814]
[1722343167703,0.02391039,66712.0,66711.0,1.94457943]
[1722343167883,0.02391039,66712.0,66711.0,1.96147814]
[1722343168108,0.02391039,66712.0,66711.0,1.94457943]
[1722343168311,0.02391039,66712.0,66711.0,1.96147814]
[1722343168515,0.02391039,66712.0,66711.0,1.94457943]
[1722343168718,0.02391039,66712.0,66711.0,1.35390564]
[1722343169555,0.02391039,66712.0,66711.0,1.43030564]
[1722343169757,0.02391039,66712.0,66711.0,1.75310564]
[1722343170167,0.02391039,66712.0,66711.0,1.57647129]
[1722343170722,0.02391039,66712.0,66711.0,1.87627129]
[1722343171753,0.02391039,66712.0,66711.0,1.57647129]
[1722343171968,0.02391039,66712.0,66711.0,1.50007129]
[1722343172168,0.02391039,66712.0,66711.0,1.37690564]
[1722343172914,0.001,66712.0,66711.0,1.37690564]
[1722343173116,0.001,66712.0,66711.0,1.35390564]
[1722343173338,0.001,66712.0,66711.0,0.95410564]
[1722343174094,0.001,66712.0,66711.0,1.25390564]
[1722343174294,0.15673119,66712.0,66711.0,1.25390564]
[1722343174692,0.15673119,66712.0,66711.0,1.35390564]
[1722343175418,0.001,66712.0,66711.0,1.37690564]
[1722343175571,0.001,66712.0,66711.0,1.67670564]
[1722343175779,0.001,66712.0,66711.0,1.8757075]
[1722343176177,0.001,66712.0,66711.0,1.5759075]
[1722343177246,0.001,66712.0,66711.0,2.14600621]
[1722343177889,0.001,66712.0,66711.0,2.44580621]
[1722343178474,0.001,66712.0,66711.0,2.59642002]
[1722343178687,0.001,66712.0,66711.0,2.32370435]
[1722343178891,0.001,66712.0,66711.0,2.44658767]
[1722343179720,0.001,66712.0,66711.0,2.59796191]
[1722343179857,0.4715,66729.0,66728.0,1.358758]
[1722343180067,0.07670129,66738.0,66737.0,0.749207]
[1722343180268,0.21927816,66738.0,66737.0,1.04889]
[1722343180515,0.21927816,66738.0,66737.0,1.33952657]
[1722343180516,0.15567816,66738.0,66737.0,1.33952657]
[1722343180741,0.15566727,66740.0,66739.0,0.179907]
[1722343180940,0.15566653,66740.0,66739.0,0.73021404]
[1722343181102,0.15566401,66743.0,66742.0,0.03007]
[1722343181304,0.06443,66744.0,66743.0,0.77921]
[1722343181505,0.06443,66744.0,66743.0,1.22949904]
[1722343181710,0.22009394,66744.0,66743.0,1.2394237]
[1722343181917,0.22009394,66744.0,66743.0,1.23542858]
[1722343182903,0.15649394,66744.0,66743.0,1.23542858]
[1722343183129,0.15649394,66744.0,66743.0,1.2786989]
[1722343183333,0.15649394,66744.0,66743.0,1.6583549]
[1722343183587,0.00083,66744.0,66743.0,1.7813549]
[1722343183798,0.00083,66744.0,66743.0,1.7953549]
[1722343184183,0.00083,66744.0,66743.0,1.1960429]
[1722343184619,0.00083,66744.0,66743.0,0.3276277]
[1722343185467,0.00083,66744.0,66743.0,0.4774557]
[1722343185690,0.00083,66744.0,66743.0,0.7771117]
[1722343185899,0.00083,66744.0,66743.0,1.0767677]
[1722343186102,0.00083,66744.0,66743.0,1.6028237]
[1722343186303,0.00083,66744.0,66743.0,1.0175117]
[1722343186505,0.00083,66744.0,66743.0,1.3171677]
[1722343187310,0.00083,66744.0,66743.0,1.35646721]
[1722343187460,0.00083,66744.0,66743.0,1.3171677]
[1722343187677,0.00083,66744.0,66743.0,1.65612321]
[1722343187874,0.00083,66744.0,66743.0,1.35646721]
[1722343188280,0.00083,66744.0,66743.0,1.3171677]
[1722343188437,0.00083,66744.0,66743.0,1.65612321]
[1722343189519,0.00083,66744.0,66743.0,1.69482241]
[1722343189719,0.00083,66744.0,66743.0,1.89278721]
[1722343190635,0.00083,66744.0,66743.0,1.91518801]
[1722343190985,0.00083,66744.0,66743.0,1.93208672]
[1722343191186,0.00083,66744.0,66743.0,1.91518801]
[1722343191589,0.00083,66744.0,66743.0,1.91610336]
[1722343192170,0.00083,66744.0,66743.0,1.9330996]
[1722343192855,0.00083,66744.0,66743.0,1.91620089]
[1722343193066,0.00083,66744.0,66743.0,1.9330996]
[1722343193628,0.00048372,66744.0,66743.0,1.9330996]
[1722343194147,0.00048372,66744.0,66743.0,2.2327556]
[1722343194302,0.00048372,66744.0,66743.0,1.9330996]
[1722343194703,0.00048372,66744.0,66743.0,2.2327556]
[1722343194925,0.00048372,66744.0,66743.0,2.23284882]
[1722343195130,0.00048372,66744.0,66743.0,1.91629411]
[1722343195331,0.00048372,66744.0,66743.0,1.65621882]
[1722343195536,0.00048372,66744.0,66743.0,1.11616282]
[1722343195932,0.00048372,66744.0,66743.0,0.36702282]
[1722343196141,0.00048372,66744.0,66743.0,0.51685082]
[1722343196486,0.00048372,66744.0,66743.0,1.3764237]
[1722343197877,0.00048372,66744.0,66743.0,1.3848737]
[1722343198278,0.00048372,66744.0,66743.0,1.583536]
[1722343198947,0.00048372,66744.0,66743.0,1.4616737]
[1722343199166,0.00048372,66744.0,66743.0,1.59712086]
[1722343199364,0.00845,66754.0,66753.0,1.289042]
[1722343199565,0.00845,66754.0,66753.0,1.56267504]
[1722343199740,0.00845,66754.0,66753.0,1.61433765]
[1722343200168,0.00845,66754.0,66753.0,1.64440765]
[1722343200735,9e-05,66762.0,66753.0,1.03207765]
[1722343200931,9e-05,66762.0,66761.0,1.56186491]
[1722343201132,0.00845,66767.0,66761.0,1.56186491]
[1722343201133,0.00845,66767.0,66766.0,0.778952]
[1722343201359,0.02355129,66767.0,66766.0,0.25063304]
[1722343201561,0.02355129,66767.0,66766.0,0.70978756]
[1722343201760,0.00845,66767.0,66766.0,0.78076632]
[1722343202160,0.00845,66767.0,66766.0,0.41023456]
[1722343202360,0.00845,66767.0,66766.0,0.29052856]
[1722343202562,0.01045,66767.0,66766.0,0.26045856]
[1722343202761,0.01045,66767.0,66766.0,0.10982552]
[1722343202762,0.02355129,66767.0,66766.0,0.10982552]
[1722343202986,0.02355129,66767.0,66766.0,0.00982552]
[1722343203175,0.16825129,66767.0,66766.0,0.00982552]
[1722343203519,0.00310129,66764.0,66763.0,0.179853]
[1722343203644,0.01310129,66764.0,66763.0,0.18070304]
[1722343203828,0.01310129,66764.0,66763.0,0.29051999]
[1722343204036,0.01310129,66764.0,66763.0,0.00981695]
[1722343204037,0.15720129,66764.0,66763.0,0.00981695]
[1722343204284,0.3128211,66764.0,66763.0,0.00981695]
[1722343204500,0.15520129,66753.0,66743.0,0.009363]
[1722343204700,0.002,66751.0,66748.0,0.149816]
[1722343205019,0.01310129,66750.0,66749.0,0.16047564]
[1722343205284,0.01465549,66752.0,66749.0,0.16047564]
[1722343205491,0.0015542,66752.0,66751.0,0.44943]
[1722343205691,0.0604,66759.0,66758.0,0.479453]
[1722343205845,0.0604,66759.0,66758.0,0.43049704]
[1722343206020,0.07350129,66759.0,66758.0,0.44033428]
[1722343206414,0.07350129,66759.0,66758.0,0.29054028]
[1722343206415,0.22912015,66759.0,66758.0,0.29054028]
[1722343206536,0.23112015,66759.0,66758.0,0.13990724]
[1722343206949,0.23112015,66759.0,66758.0,0.03990724]
[1722343207306,0.22912015,66759.0,66758.0,0.03990724]
[1722343207451,0.22912015,66759.0,66758.0,0.05390724]
[1722343207654,0.22912015,66759.0,66758.0,0.25157402]
[1722343207856,0.21601886,66759.0,66758.0,1.10138506]
[1722343208162,0.15561886,66759.0,66758.0,1.40097406]
[1722343208365,0.15561189,66759.0,66758.0,0.35241306]
[1722343208610,0.01310129,66762.0,66761.0,0.449364]
[1722343208841,0.16561025,66762.0,66761.0,1.05541707]
[1722343209019,0.16561025,66762.0,66761.0,1.35499307]
[1722343209189,0.16871154,66762.0,66761.0,1.35499307]
[1722343209460,0.15561025,66762.0,66761.0,1.35499307]
[1722343210040,0.15561025,66762.0,66761.0,1.36899307]
[1722343210213,0.01,66764.0,66761.0,0.32047707]
[1722343210414,0.15560362,66763.0,66762.0,1.03461475]
[1722343210640,0.15560362,66763.0,66762.0,1.33418575]
[1722343210815,0.15560362,66763.0,66762.0,1.34401824]
[1722343211219,0.01,66764.0,66762.0,1.31556065]
[1722343211499,0.01510129,66764.0,66763.0,0.748917]
[1722343211699,0.17070573,66764.0,66763.0,0.1]
[1722343211928,0.31780573,66764.0,66763.0,0.1098194]
[1722343212143,0.31780573,66764.0,66763.0,0.0098194]
[1722343212144,0.53499632,66764.0,66763.0,0.0098194]
[1722343213427,0.53499632,66764.0,66763.0,0.014]
[1722343213634,0.53499632,66764.0,66763.0,0.0238194]